Cogmind - Beta 10.2 @@@ ROGUE MODE // 2021.08.08 @ 06:10:38 Player: youngster Result: Destroyed by G-67 Veteran with Plasma Rifle Performance ------------- Evolutions (6) 3000 Regions Visited (18) 3600 Robots Destroyed (144) 720 Value Destroyed (5935) 5935 Prototype IDs (72) 1440 Alien Tech Used (1) 200 Bonus (3424) 3424 TOTAL SCORE: 18319 Bonus ------- Follower Combat Kills 85 Aligned with FarCom 300 Met Zhirov 300 Met Warlord at Base 500 MAIN.C Attacked Warlord 500 Warlord Defense Kill 2010 Friendly Fire -271 Cogmind --------- Core Integrity 0/1150 Matter 260/300 Energy 80/100 System Corruption 6% Temperature Cool (12) Movement Walking (160) Ox2 Location -4/Warlord Parts ------- > --- POWER (1) -------- (None) > --- PROPULSION (6) --- Enhanced Biometal Leg > --- UTILITY (8) ------ High-capacity Storage Unit High-capacity Storage Unit > --- WEAPON (4) ------- Helical Railgun Heavy Shock Bomb Launcher Vortex Lance Vortex Lance > --- INVENTORY (20) --- Fission Core High-capacity Matter Pod (200) Improved Sensor Array Salvage Targeting Computer Transmission Jammer PSU Rigger Transdimensional Reconstructor Enhanced Autogun Heavy Rocket Launcher Peak State ------------ > --- POWER ------------ Light Nuclear Core > --- PROPULSION ------- Armored Treads Medium Treads Armored Medium Treads Armored Medium Treads Myomer Leg Myomer Leg > --- UTILITY ---------- High-capacity Storage Unit High-capacity Storage Unit Advanced Signal Interpreter Advanced Terrain Scan Processor Transmission Jammer Advanced Focal Shield Advanced Hardlight Generator > --- WEAPON ----------- Vortex Shotgun Coil Gun Railgun Battle Cannon > --- INVENTORY -------- Light Nuclear Core Fission Core High-capacity Matter Pod Improved Sensor Array Salvage Targeting Computer Hardened Heavy Armor Plating PSU Rigger Transdimensional Reconstructor Vortex Shotgun Enhanced Autogun Battle Cannon Mass Driver Heavy Shock Bomb Launcher Heavy Rocket Launcher Improved Datajack Dirty Datajack Makeshift Axe Vortex Lance Vortex Lance [Rating: 95] Favorites ----------- Power Light Nuclear Core Engine Light Ion Engine Power Core Light Nuclear Core Reactor Heavy Antimatter Reactor Propulsion Advanced Treads Treads Advanced Treads Leg Aluminum Leg Wheel Wheel Utility High-capacity Storage Unit Device Improved Sensor Array Storage High-capacity Storage Unit Processor Advanced Targeting Computer Protection Experimental Weapon Shielding Weapon Gauss Rifle Energy Gun Medium Laser Ballistic Gun Gauss Rifle Ballistic Cannon Battle Cannon Launcher Heavy Rocket Launcher Slashing Weapon Makeshift Axe Piercing Weapon Vortex Lance Special Melee Weapon Improved Datajack Build | -11 -10 -10 -10 -9 -8 -7 -6 -6 -6 -5 -5 -5 -5 -4 -4 -4 -4 -4 ------- Run | Scr Mat Min Exi Min Mat Fac Fac Low Low Fac Upp Upp Zhi Pro Fac Upp Upp War Slots Evolved 12 | . . . . . 4 2 2 . . 2 . . . . 2 . . . Power . | . . . . . . . . . . . . . . . . . . . Propulsion 4 | . . . . . 1 1 . . . 1 . . . . 1 . . . Utility 6 | . . . . . 2 1 1 . . 1 . . . . 1 . . . Weapon 2 | . . . . . 1 . 1 . . . . . . . . . . . Parts Attached 234 | 7 13 4 1 9 34 24 14 2 2 10 6 14 10 14 7 6 13 44 Power 12 | 1 2 1 . 1 2 1 1 . . . . . 1 . . . 1 1 Engine 5 | 1 2 1 . 1 . . . . . . . . . . . . . . Core 6 | . . . . . 2 1 1 . . . . . . . . . 1 1 Reactor 1 | . . . . . . . . . . . . . 1 . . . . . Propulsion 45 | 2 2 1 . 3 10 3 2 . . 2 . . . 2 1 . 5 12 Treads 33 | 2 . . . . 7 3 2 . . 2 . . . 2 1 . 3 11 Leg 9 | . 1 1 . 3 1 . . . . . . . . . . . 2 1 Wheel 3 | . 1 . . . 2 . . . . . . . . . . . . . Hover . | . . . . . . . . . . . . . . . . . . . Flight . | . . . . . . . . . . . . . . . . . . . Utility 96 | 2 3 . . . 14 14 8 1 2 5 4 8 4 9 3 5 3 11 Device 58 | . . . . . 7 11 5 1 2 3 3 5 1 6 3 5 3 3 Storage 9 | 2 3 . . . 1 . . . . . . 1 1 . . . . 1 Processor 8 | . . . . . 1 2 3 . . . . 1 . . . . . 1 Hackware . | . . . . . . . . . . . . . . . . . . . Protection 21 | . . . . . 5 1 . . . 2 1 1 2 3 . . . 6 Artifact . | . . . . . . . . . . . . . . . . . . . Weapon 81 | 2 6 2 1 5 8 6 3 1 . 3 2 6 5 3 3 1 4 20 Energy Gun 12 | 1 2 1 . . 1 . . . . . . 1 1 . 1 . 1 3 Energy Cannon . | . . . . . . . . . . . . . . . . . . . Ballistic Gun 40 | 1 4 1 . 3 7 5 2 . . 3 1 2 3 2 . 1 2 3 Ballistic Cannon 3 | . . . . . . . . . . . . . . . . . . 3 Launcher 11 | . . . . . . 1 1 . . . . 2 . 1 1 . 1 4 Special Weapon . | . . . . . . . . . . . . . . . . . . . Impact Weapon . | . . . . . . . . . . . . . . . . . . . Slashing Weapon 4 | . . . . . . . . 1 . . 1 1 . . 1 . . . Piercing Weapon 4 | . . . . . . . . . . . . . . . . . . 4 Special Melee Weapon 7 | . . . 1 2 . . . . . . . . 1 . . . . 3 Unidentified Prototypes 10 | . . . . . 1 1 . . . . . . 4 . 1 . . 3 Parts Lost 69 | . 8 3 . 1 4 3 . . . . . 3 . 3 . . 13 31 Power 8 | . 2 1 . . 1 1 . . . . . . . . . . 1 2 Propulsion 23 | . 2 . . . 2 . . . . . . . . 1 . . 7 11 Utility 19 | . . . . . 1 . . . . . . 3 . 1 . . 3 11 Weapon 19 | . 4 2 . 1 . 2 . . . . . . . 1 . . 2 7 Highest Loss Streak 13 | . 4 3 . 1 3 2 . . . . . 2 . 2 . . 10 13 Average Slot Usage (%) 92 | . 99 99 100 100 96 97 97 100 100 94 94 93 72 93 89 94 81 68 Engine 3 | . 13 13 14 14 3 . . . . . . . . . . . . . Core 3 | . . . . . 4 5 5 6 6 5 5 5 2 . . . 4 2 Treads 18 | . 20 . . . 16 30 26 26 26 25 23 23 23 23 26 26 13 13 Leg 3 | . 3 14 14 14 1 . . . . . . . . . . . 6 4 Wheel 3 | . 3 14 14 14 8 . . . . . . . . . . . . . Device 6 | . . . . . 6 6 6 6 6 7 10 10 8 8 5 10 13 10 Storage 16 | . 28 28 28 28 18 15 13 13 13 11 11 11 11 11 10 10 10 10 Processor 9 | . . . . . 2 13 20 20 20 17 17 17 17 17 15 15 10 8 Protection 1 | . . . . . 6 1 . . . 2 . . 1 1 5 5 . . Energy Gun 4 | . 10 14 14 13 2 . . . . . . 4 . 5 1 . . 1 Ballistic Gun 17 | . 17 14 1 13 24 22 23 23 20 20 22 15 . 16 15 15 19 7 Naked Turns . | . . . . . . . . . . . . . . . . . . . Heaviest Build 122 | 17 55 55 55 57 83 86 94 91 90 94 91 96 100 100 108 107 94 122 Greatest Support 161 | 40 40 10 10 10 42 84 86 84 84 142 142 142 142 143 161 161 92 157 Greatest Overweight (x) 34 | 1 5 5 5 5 5 3 1 1 1 . . . . . . . 3 34 Average Overweight (x) 1 | . 1 5 5 5 2 . . 1 1 . . . . . . . . . Largest Inventory Capacity 20 | 8 18 18 18 18 20 20 20 20 20 20 20 20 20 20 20 20 20 20 Average Capacity 18 | 6 12 18 18 18 18 20 20 20 20 20 20 20 20 20 20 20 20 20 Most Carried 20 | 4 16 15 18 18 20 20 20 20 20 20 20 20 20 20 20 20 20 20 Average Carried 17 | 2 10 14 17 17 17 19 19 19 20 19 19 18 19 19 18 19 13 15 Final Capacity 20 | 8 18 18 18 18 20 20 20 20 20 20 20 20 20 20 20 20 20 20 Final Carried 20 | 4 14 14 18 17 20 19 20 20 20 20 19 18 19 18 20 20 13 19 Class Distribution -------------------- 42% | Hauler-Skirmisher 26% | Mutant 14% | Hauler-Mutant 6% | Skirmisher 3% | Hauler-Tank Dominant Class ---------------- Mutant | -10/Materials Mutant | -10/Mines Mutant | -10/Exiles Mutant | -9/Mines Skirmisher | -8/Materials Hauler-Skirmisher | -7/Factory Hauler-Skirmisher | -6/Factory Hauler-Skirmisher | -6/Lower Caves Hauler-Skirmisher | -6/Lower Caves Hauler-Skirmisher | -5/Factory Hauler-Skirmisher | -5/Upper Caves Hauler-Skirmisher | -5/Upper Caves Hauler-Mutant | -5/Zhirov Hauler-Skirmisher | -4/Proximity Caves Hauler-Tank | -4/Factory Hauler-Skirmisher | -4/Upper Caves Hauler-Skirmisher | -4/Upper Caves Hauler-Mutant | -4/Warlord Resources | -11 -10 -10 -10 -9 -8 -7 -6 -6 -6 -5 -5 -5 -5 -4 -4 -4 -4 -4 ----------- Run | Scr Mat Min Exi Min Mat Fac Fac Low Low Fac Upp Upp Zhi Pro Fac Upp Upp War Matter Collected 5501 | 252 566 56 . 147 824 488 184 95 . 513 177 400 . 481 110 232 337 639 Remotely 91 | . . . . . 91 . . . . . . . . . . . . . Salvage Created 6219 | 100 762 108 . 393 1117 623 184 . . 490 306 190 . 479 138 215 454 660 Parts 304 | 3 48 7 . 20 59 28 12 . . 23 17 13 . 19 6 12 21 16 Haulers Intercepted 5 | . 1 . . . 4 . . . . . . . . . . . . . Recyclers Shooed 2 | . 1 . . . . 1 . . . . . . . . . . . . Parts Field Recycled . | . . . . . . . . . . . . . . . . . . . Retrieved Matter . | . . . . . . . . . . . . . . . . . . . Parts Self-Destructed 172 | . . . . . . . . 4 . . 8 12 . 13 . 12 17 106 Prevented 23 | . . . . . . . . . . . 2 . . 4 . 3 3 11 Kills | -11 -10 -10 -10 -9 -8 -7 -6 -6 -6 -5 -5 -5 -5 -4 -4 -4 -4 -4 ------- Run | Scr Mat Min Exi Min Mat Fac Fac Low Low Fac Upp Upp Zhi Pro Fac Upp Upp War Combat Hostiles Destroyed 128 | . 20 2 . 11 19 11 3 . . 8 5 7 . 9 6 7 6 14 Melee 5 | . . . . . . . . . . . . . . . . . . 5 Guns 103 | . 19 2 . 11 18 11 3 . . 8 5 2 . 5 2 7 6 4 Cannons 1 | . . . . . . . . . . . . . . . . . . 1 AOE 18 | . . . . . 1 . . . . . . 5 . 4 4 . . 4 Classes Destroyed 20 | 1 6 . . 1 3 3 . . . . . 1 . . . . . 5 Worker 4 | . 1 1 . . 1 . 1 . . . . . . . . . . . Builder 1 | . . . . . 1 . . . . . . . . . . . . . Hauler 5 | . 1 . . . 4 . . . . . . . . . . . . . Recycler 2 | 1 . . . . . 1 . . . . . . . . . . . . Operator 2 | . 1 . . . 1 . . . . . . . . . . . . . Watcher 2 | . 1 . . . 1 . . . . . . . . . . . . . Swarmer 30 | . 6 . . 1 3 . . . . . . 5 . 4 5 6 . . Saboteur 1 | . . . . . . . . . . . . . . . . . . 1 Grunt 55 | . 14 2 . 9 9 7 . . . 3 . . . 3 . . 4 4 Brawler 4 | . . . . . 1 . . . . . . . . . . . . 3 Duelist 1 | . . . . . . 1 . . . . . . . . . . . . Protector 2 | . . . . . . . . . . . . . . . . . . 2 Sentry 15 | . . . . . 6 1 2 . . 2 . 1 . 1 1 1 . . Specialist 1 | . . . . . . . . . . . . . . . . . . 1 Hunter 5 | . . . . . . 1 . . . 1 1 . . . . . 2 . Programmer 4 | . . . . . . 1 1 . . 2 . . . . . . . . Behemoth 3 | . . . . . . . . . . . . 1 . 1 . . . 1 Executioner 2 | . . . . . . . . . . . . . . . . . . 2 Decomposer 1 | . . . . . . . . . . . . . . . . . 1 . Assembled 1 | . . . . 1 . . . . . . . . . . . . . . Thug 4 | . . . . . . . . . . . 4 . . . . . . . Mutant 1 | . . . . . . . . . . . . . . . . . . 1 Best Kill Streak 6 | 1 6 1 . 3 3 5 1 . . 3 4 5 . 4 5 4 4 5 Combat Bots Only 5 | . 3 1 . 3 3 5 1 . . 3 4 5 . 4 5 4 4 5 Max Kills in Single Turn 3 | 1 2 1 . 1 2 1 1 . . 2 1 2 . 3 2 2 1 3 Gunslinging 1 | . 1 . . . . . . . . 1 . . . . . 1 . . Exploded 3 | . . . . . 1 . . . . . . 2 . 3 2 . . 3 Melee 1 | . . . . . . . . . . . . . . . . . . 1 Uniques/NPCs Destroyed . | . . . . . . . . . . . . . . . . . . . Combat | -11 -10 -10 -10 -9 -8 -7 -6 -6 -6 -5 -5 -5 -5 -4 -4 -4 -4 -4 -------- Run | Scr Mat Min Exi Min Mat Fac Fac Low Low Fac Upp Upp Zhi Pro Fac Upp Upp War Damage Taken 15472 | . 933 209 . 304 976 787 251 . . 806 149 485 . 850 191 212 1435 7884 Core 1710 | . 148 11 . 71 82 81 5 . . 40 21 34 . 57 23 11 82 1044 Absorbed by Shields 374 | . . . . . . . . . . . . . . 118 57 39 94 66 Reduced by Siege Mode 71 | . . . . . . . . . . . 24 8 . 39 . . . . Core Remaining (%) 77 | 100 . . . 8 85 88 . . 99 . . . . 84 . . . . Volleys Fired 344 | 4 82 14 . 27 47 25 9 . . 18 7 19 . 21 9 11 22 29 Largest 4 | 1 2 2 . 2 3 3 4 . . 4 4 4 . 4 4 3 4 4 Hottest 170 | 40 70 70 . 70 84 84 111 . . 111 109 109 . 146 143 83 140 170 Shots Fired 894 | 4 149 24 . 51 137 75 31 . . 72 27 49 . 62 25 33 77 78 Gun 851 | 4 149 24 . 51 137 75 30 . . 72 27 43 . 59 23 33 76 48 Cannon 27 | . . . . . . . . . . . . . . . . . . 27 Launcher 16 | . . . . . . . 1 . . . . 6 . 3 2 . 1 3 Special . | . . . . . . . . . . . . . . . . . . . Kinetic 765 | . 123 11 . 24 126 75 30 . . 72 27 43 . 48 20 33 74 59 Thermal 70 | . 19 13 . 27 11 . . . . . . . . . . . . . Explosive 15 | . . . . . . . 1 . . . . 6 . 3 2 . . 3 Electromagnetic 28 | 4 7 . . . . . . . . . . . . 11 3 . 3 . Entropic 16 | . . . . . . . . . . . . . . . . . . 16 Robot Hit Streak 70 | 4 16 13 . 19 16 18 11 . . 22 19 19 . 70 16 20 14 24 Robot Miss Streak 4 | . 3 2 . 3 2 1 1 . . 2 1 1 . 1 4 2 2 2 Penetration Max 1 | . . . . . 1 1 . . . 1 . . . . . . . . Secondary Targets 17 | . 2 . . . 4 2 . . . 3 . . . . . 3 3 . Max Gunslinging Chain 1 | . 1 . . . 1 1 . . . 1 . . . . . 1 1 . Shots Hit Robots 718 | 4 116 19 5 38 98 58 25 . . 58 20 40 4 52 19 23 61 78 Core Hits 326 | 2 49 5 . 19 37 26 8 . . 20 11 18 . 29 12 13 24 53 Critical Hits 16 | . . . . 1 2 1 1 . . 5 . 1 . 2 . 1 2 . Critical Kills 3 | . . . . 1 . 1 . . . 1 . . . . . . . . Critical Parts Destroyed 10 | . . . . . 2 . 1 . . 3 . . . 1 . 1 2 . Melee Attacks 30 | . . . 5 1 . . . . . . . 1 4 . 4 . . 15 Impact . | . . . . . . . . . . . . . . . . . . . Slashing 5 | . . . . . . . . . . . . 1 . . 4 . . . Piercing . | . . . . . . . . . . . . . . . . . . . Entropic 11 | . . . . . . . . . . . . . . . . . . 11 Sneak Attacks 12 | . . . 4 . . . . . . . . . 4 . . . . 4 Combat Hostiles . | . . . . . . . . . . . . . . . . . . . Follow-up Attacks 1 | . . . . . . . . . . . . . . . . . . 1 Damage Inflicted 16089 | 68 1134 255 . 471 1887 1315 575 . . 1259 471 1238 . 1322 541 423 1091 4039 Guns 12369 | 55 1087 248 . 471 1862 1274 555 . . 1226 471 708 . 1018 257 423 994 1720 Cannons 433 | . . . . . . . . . . . . . . . . . . 433 Explosions 2226 | . . . . . . . . . . . . 526 . 304 284 . 97 1015 Melee 871 | . . . . . . . . . . . . . . . . . . 871 Ramming 190 | 13 47 7 . . 25 41 20 . . 33 . 4 . . . . . . Kinetic 10806 | . 878 123 . 233 1772 1274 555 . . 1226 471 708 . 834 235 423 941 1133 Thermal 626 | . 173 125 . 238 90 . . . . . . . . . . . . . Explosive 2129 | . . . . . . . . . . . . 526 . 304 284 . . 1015 Electromagnetic 447 | 55 36 . . . . . . . . . . . . 184 22 . 150 . Impact . | . . . . . . . . . . . . . . . . . . . Slashing . | . . . . . . . . . . . . . . . . . . . Piercing . | . . . . . . . . . . . . . . . . . . . Entropic 1891 | . . . . . . . . . . . . . . . . . . 1891 Highest Corruption 6 | . . . . . . . 3 3 3 3 3 3 3 3 . . 1 6 Average Corruption 3 | . . . . . . . 2 3 3 2 3 3 3 3 . . 1 5 Corruption Purged . | . . . . . . . . . . . . . . . . . . . Effects 105 | . . . . . . . 16 6 1 4 6 19 9 12 . . 3 29 Message Errors 17 | . . . . . . . 4 2 . . 1 1 . . . . 2 7 Matter Fused 26 | . . . . . . . 5 1 1 . 3 8 3 2 . . . 3 Heat Flow Errors 14 | . . . . . . . 1 . . 1 . 4 3 3 . . . 2 Energy Discharges 9 | . . . . . . . 1 2 . . . . 1 1 . . . 4 Parts Rejected 1 | . . . . . . . . . . . . . . . . . . 1 Data Loss (minor) 14 | . . . . . . . 2 1 . 1 1 2 2 2 . . . 3 Data Loss (major) 2 | . . . . . . . . . . . . . . . . . . 2 Misfires 1 | . . . . . . . . . . . . . . . . . . 1 Targeting Errors 17 | . . . . . . . 3 . . 2 1 4 . 2 . . 1 4 Weapon Failures 4 | . . . . . . . . . . . . . . 2 . . . 2 Overload Shots . | . . . . . . . . . . . . . . . . . . . Overflow Damage 126 | . . . . . . 2 . . . 3 . 42 . . 12 . . 67 Projectiles . | . . . . . . . . . . . . . . . . . . . Explosions 55 | . . . . . . . . . . . . 42 . . 12 . . 1 Melee 71 | . . . . . . 2 . . . 3 . . . . . . . 66 Knockbacks 1 | . . . . . . . . . . . . . . . . . . 1 Impact . | . . . . . . . . . . . . . . . . . . . Kinetic 1 | . . . . . . . . . . . . . . . . . . 1 Secondary . | . . . . . . . . . . . . . . . . . . . Self-Inflicted Damage 36 | . 10 3 . . . . . . . . . . . . . . 23 . Shots 1 | . . . . . . . . . . . . . . . . . 1 . Rammed 32 | 6 13 1 . . 4 6 . . . 1 . 1 . . . . . . Targets Rammed 35 | 6 14 1 . . 5 6 1 . . 1 . 1 . . . . . . Kicked . | . . . . . . . . . . . . . . . . . . . Crushed 3 | . 1 . . . 1 . 1 . . . . . . . . . . . Highest Temperature 279 | . 94 113 . 67 172 48 184 . . 150 135 279 222 207 74 42 195 249 Average Temperature 49 | . 24 51 . 23 61 16 54 . . 46 59 79 104 47 27 15 77 61 Received Heat Transfer 2787 | . 351 87 . 176 405 306 42 . . 108 63 72 . 117 7 . 350 703 Effects 1 | . . . . . . . . . . . . 1 . . . . . . Energy Bleed 1 | . . . . . . . . . . . . 1 . . . . . . Siege Activations 5 | . . . . . . . . . . . 1 1 . 3 . . . . Total Turns 68 | . . . . . . . . . . . 17 17 . 34 . . . . Longest Duration 18 | . . . . . . . . . . . 17 17 . 18 . . . . Robots Corrupted . | . . . . . . . . . . . . . . . . . . . Combat Hostiles . | . . . . . . . . . . . . . . . . . . . Parts Fried 1 | . . . . . . . . . . . . . . . . . . 1 Impact Corruptions 2 | . . . . . . 1 . . . 1 . . . . . . . . Robots Melted 1 | . 1 . . . . . . . . . . . . . . . . . Combat Hostiles 1 | . 1 . . . . . . . . . . . . . . . . . Parts Melted 2 | . 1 1 . . . . . . . . . . . . . . . . Heat Transferred 1720 | . 447 370 . 703 200 . . . . . . . . . . . . . Parts Sabotaged 3 | . . . . . . . . . . . . . . . . . . 3 Parts Stolen . | . . . . . . . . . . . . . . . . . . . Parts Stripped . | . . . . . . . . . . . . . . . . . . . Power Chain Reactions . | . . . . . . . . . . . . . . . . . . . Missiles Intercepted . | . . . . . . . . . . . . . . . . . . . Alert | -11 -10 -10 -10 -9 -8 -7 -6 -6 -6 -5 -5 -5 -5 -4 -4 -4 -4 -4 ------- Run | Scr Mat Min Exi Min Mat Fac Fac Low Low Fac Upp Upp Zhi Pro Fac Upp Upp War Peak Influence 379 | 5 322 42 . 140 379 147 89 . . 184 . . . . 207 . . . Initial 54 | . 3 7 . . 54 . 23 . . . . . . . . . . . Average 79 | 1 108 16 . 72 160 46 18 . . 40 . . . . 121 . . . Maximum Alert Level 1 | . 1 . . . 1 . . . . . . . . . 1 . . . Low Security (%) 89 | 100 87 100 . 100 62 100 100 . . 100 . . . . 80 . . . Level 1 10 | . 12 . . . 37 . . . . . . . . . 19 . . . Level 2 . | . . . . . . . . . . . . . . . . . . . Level 3 . | . . . . . . . . . . . . . . . . . . . Level 4 . | . . . . . . . . . . . . . . . . . . . Level 5 . | . . . . . . . . . . . . . . . . . . . High Security . | . . . . . . . . . . . . . . . . . . . Max Security . | . . . . . . . . . . . . . . . . . . . Squads Dispatched 18 | . 6 . . . 3 4 2 . . 2 . . . . 1 . . . Investigation 7 | . 3 . . . 2 1 . . . . . . . . 1 . . . Extermination 3 | . . . . . . 1 1 . . 1 . . . . . . . . Reinforcement 7 | . 3 . . . 1 1 1 . . 1 . . . . . . . . Assault . | . . . . . . . . . . . . . . . . . . . Garrison 1 | . . . . . . 1 . . . . . . . . . . . . Intercept . | . . . . . . . . . . . . . . . . . . . Construction Impeded 1 | . . . . . . . 1 . . . . . . . . . . . Haulers Reinforced . | . . . . . . . . . . . . . . . . . . . Stealth | -11 -10 -10 -10 -9 -8 -7 -6 -6 -6 -5 -5 -5 -5 -4 -4 -4 -4 -4 --------- Run | Scr Mat Min Exi Min Mat Fac Fac Low Low Fac Upp Upp Zhi Pro Fac Upp Upp War Distress Signals 5 | . 1 . . . 2 2 . . . . . . . . . . . . Communications Jammed . | . . . . . . . . . . . . . . . . . . . Distress Signals . | . . . . . . . . . . . . . . . . . . . Times Spotted 225 | . 36 6 . 17 36 22 3 . . 12 5 7 . 9 8 7 6 51 Peak Tracking Total 13 | . 4 3 . 4 4 6 2 . . 3 4 5 . 3 5 4 4 13 Tactical Retreats 9 | . . 3 . . 2 2 . . . . . . . 1 . . . 1 Traps | -11 -10 -10 -10 -9 -8 -7 -6 -6 -6 -5 -5 -5 -5 -4 -4 -4 -4 -4 ------- Run | Scr Mat Min Exi Min Mat Fac Fac Low Low Fac Upp Upp Zhi Pro Fac Upp Upp War Traps Triggered 4 | . . . . . 2 1 . . . . . . . . 1 . . . Indirectly . | . . . . . . . . . . . . . . . . . . . Trap Hack Attempts . | . . . . . . . . . . . . . . . . . . . Triggered . | . . . . . . . . . . . . . . . . . . . Disarmed . | . . . . . . . . . . . . . . . . . . . Reprogrammed 7 | . 7 . . . . . . . . . . . . . . . . . Reused . | . . . . . . . . . . . . . . . . . . . Traps Extracted . | . . . . . . . . . . . . . . . . . . . Installed . | . . . . . . . . . . . . . . . . . . . Triggered 24 | . . . . . . . . 1 . . . 1 . . . 1 . 21 Power Sources Rigged 17 | . . . . . 10 4 3 . . . . . . . . . . . Exploded 16 | . . . . 3 8 3 . . . . . . . 1 . . . 1 Machines | -11 -10 -10 -10 -9 -8 -7 -6 -6 -6 -5 -5 -5 -5 -4 -4 -4 -4 -4 ---------- Run | Scr Mat Min Exi Min Mat Fac Fac Low Low Fac Upp Upp Zhi Pro Fac Upp Upp War Machines Disabled 7 | . . . . . 4 . 1 . . 1 . . . . . . . 1 Max in Single Turn 1 | . . . . . 1 . 1 . . 1 . . . . . . . 1 Garrison Access 1 | . . . . . . . . . . 1 . . . . . . . . Machines Sabotaged . | . . . . . . . . . . . . . . . . . . . Garrisons Compromised . | . . . . . . . . . . . . . . . . . . . Overloaded Fab Kills . | . . . . . . . . . . . . . . . . . . . Fab Network Shutdowns . | . . . . . . . . . . . . . . . . . . . Hacking | -11 -10 -10 -10 -9 -8 -7 -6 -6 -6 -5 -5 -5 -5 -4 -4 -4 -4 -4 --------- Run | Scr Mat Min Exi Min Mat Fac Fac Low Low Fac Upp Upp Zhi Pro Fac Upp Upp War Machines Accessed 36 | . 7 . 2 . 8 4 1 . . 4 . 1 6 . 1 . . 2 Terminals 16 | . 5 . . . 5 1 1 . . 3 . . . . 1 . . . Fabricators . | . . . . . . . . . . . . . . . . . . . Repair Stations 3 | . . . . . 2 1 . . . . . . . . . . . . Recycling Units 3 | . 2 . . . 1 . . . . . . . . . . . . . Scanalyzers 1 | . . . . . . 1 . . . . . . . . . . . . Garrison Access 2 | . . . . . . 1 . . . 1 . . . . . . . . Total Hacks 84 | . 20 . 2 . 23 8 2 . . 5 . 1 19 . 1 . . 3 Successful 59 | . 11 . 2 . 13 6 1 . . 3 . 1 19 . . . . 3 Failed 25 | . 9 . . . 10 2 1 . . 2 . . . . 1 . . . Catastrophic 5 | . . . . . 1 1 1 . . 1 . . . . 1 . . . Database Lockouts . | . . . . . . . . . . . . . . . . . . . Manual 15 | . 3 . 1 . 10 . . . . . . . . . 1 . . . Terminals 43 | . 17 . . . 18 1 2 . . 4 . . . . 1 . . . Fabricators . | . . . . . . . . . . . . . . . . . . . Repair Stations 6 | . . . . . 4 2 . . . . . . . . . . . . Recycling Units 4 | . 3 . . . 1 . . . . . . . . . . . . . Scanalyzers 4 | . . . . . . 4 . . . . . . . . . . . . Garrison Access 2 | . . . . . . 1 . . . 1 . . . . . . . . Terminal Hacks 45 | . 9 . 2 . 8 . 1 . . 2 . 1 19 . . . . 3 Record 10 | . . . 1 . . . . . . . . . 7 . . . . 2 Part Schematic 5 | . . . . . 1 . . . . . . . 4 . . . . . Robot Analysis 6 | . . . . . 1 . 1 . . . . . 4 . . . . . Prototype ID Bank 5 | . 1 . . . . . . . . . . . 4 . . . . . Open Door 2 | . . . . . . . . . . . . 1 . . . . . 1 Branch Access Points 1 | . . . . . . . . . . 1 . . . . . . . . Alert Level 1 | . 1 . . . . . . . . . . . . . . . . . Unreport Threat 6 | . 2 . . . 3 . . . . 1 . . . . . . . . Reprogram Traps 2 | . 2 . . . . . . . . . . . . . . . . . Dispatch Records 2 | . 1 . . . 1 . . . . . . . . . . . . . Transport Status 1 | . . . . . 1 . . . . . . . . . . . . . Hauler Manifests 2 | . 1 . . . 1 . . . . . . . . . . . . . Registered Components 1 | . 1 . . . . . . . . . . . . . . . . . EX-Prototype ID Bank 1 | . . . 1 . . . . . . . . . . . . . . . Fabricator Hacks . | . . . . . . . . . . . . . . . . . . . Repair Station Hacks 6 | . . . . . 4 2 . . . . . . . . . . . . Scan Component 3 | . . . . . 2 1 . . . . . . . . . . . . Repair 3 | . . . . . 2 1 . . . . . . . . . . . . Recycling Unit Hacks . | . . . . . . . . . . . . . . . . . . . Scanalyzer 4 | . . . . . . 4 . . . . . . . . . . . . Insert Component 2 | . . . . . . 2 . . . . . . . . . . . . Analyze 2 | . . . . . . 2 . . . . . . . . . . . . Garrison Access Hacks 1 | . . . . . . . . . . 1 . . . . . . . . Seal Access 1 | . . . . . . . . . . 1 . . . . . . . . Unauthorized Hacks 3 | . 2 . . . 1 . . . . . . . . . . . . . Terminals . | . . . . . . . . . . . . . . . . . . . Fabricators . | . . . . . . . . . . . . . . . . . . . Repair Stations . | . . . . . . . . . . . . . . . . . . . Recycling Units 3 | . 2 . . . 1 . . . . . . . . . . . . . Tunnel 3 | . 2 . . . 1 . . . . . . . . . . . . . Scanalyzers . | . . . . . . . . . . . . . . . . . . . Garrison Access . | . . . . . . . . . . . . . . . . . . . Data Cores Recovered . | . . . . . . . . . . . . . . . . . . . Used . | . . . . . . . . . . . . . . . . . . . Hacking Detections 19 | . 5 . . . 5 4 1 . . 3 . . . . 1 . . . Full Trace Events 2 | . 2 . . . . . . . . . . . . . . . . . Feedback Events . | . . . . . . . . . . . . . . . . . . . Feedback Blocked . | . . . . . . . . . . . . . . . . . . . Robot Schematics Acquired . | . . . . . . . . . . . . . . . . . . . Robots Built . | . . . . . . . . . . . . . . . . . . . Matter . | . . . . . . . . . . . . . . . . . . . Time . | . . . . . . . . . . . . . . . . . . . Total Robot Build Rating . | . . . . . . . . . . . . . . . . . . . Part Schematics Acquired 6 | . . . . . 1 1 . . . . . . 4 . . . . . Parts Built . | . . . . . . . . . . . . . . . . . . . Matter . | . . . . . . . . . . . . . . . . . . . Time . | . . . . . . . . . . . . . . . . . . . Total Part Build Rating . | . . . . . . . . . . . . . . . . . . . Parts Repaired 3 | . . . . . 2 1 . . . . . . . . . . . . Time 73 | . . . . . 51 22 . . . . . . . . . . . . Parts Recycled . | . . . . . . . . . . . . . . . . . . . Recycled Matter . | . . . . . . . . . . . . . . . . . . . Retrieved Matter . | . . . . . . . . . . . . . . . . . . . Retrieved Components . | . . . . . . . . . . . . . . . . . . . Parts Scanalyzed 2 | . . . . . . 2 . . . . . . . . . . . . Part Schematics Acquired 1 | . . . . . . 1 . . . . . . . . . . . . Parts Damaged . | . . . . . . . . . . . . . . . . . . . Bothacking | -11 -10 -10 -10 -9 -8 -7 -6 -6 -6 -5 -5 -5 -5 -4 -4 -4 -4 -4 ------------ Run | Scr Mat Min Exi Min Mat Fac Fac Low Low Fac Upp Upp Zhi Pro Fac Upp Upp War Used RIF Installer . | . . . . . . . . . . . . . . . . . . . Robots Hacked 11 | . . . 4 1 . . . . . . . . 3 . . . . 3 Non-combat 3 | . . . 3 . . . . . . . . . . . . . . . Combat 8 | . . . 1 1 . . . . . . . . 3 . . . . 3 Robot Hacks Applied 12 | . . . 4 1 . . . . . . . . 4 . . . . 3 parse_system 12 | . . . 4 1 . . . . . . . . 4 . . . . 3 Relay Couplers Released . | . . . . . . . . . . . . . . . . . . . Robots Rewired . | . . . . . . . . . . . . . . . . . . . Allies Hacked . | . . . . . . . . . . . . . . . . . . . Hacks Repelled . | . . . . . . . . . . . . . . . . . . . Allies | -11 -10 -10 -10 -9 -8 -7 -6 -6 -6 -5 -5 -5 -5 -4 -4 -4 -4 -4 -------- Run | Scr Mat Min Exi Min Mat Fac Fac Low Low Fac Upp Upp Zhi Pro Fac Upp Upp War Total Allies 3 | . . 3 . . . . . . . . . . . . . . . . Largest Group 3 | . . 3 3 3 . . . . . . . . . . . . . . Highest-Rated Group 40 | . . 40 40 40 . . . . . . . . . . . . . . Highest-Rated Ally 16 | . . 16 16 16 . . . . . . . . . . . . . . Total Orders . | . . . . . . . . . . . . . . . . . . . Ally Attacks 13 | . . . . 13 . . . . . . . . . . . . . . Total Damage 171 | . . . . 171 . . . . . . . . . . . . . . Kills 3 | . . . . 3 . . . . . . . . . . . . . . Allies Corrupted 1 | . . . . 1 . . . . . . . . . . . . . . Allies Melted . | . . . . . . . . . . . . . . . . . . . Intel | -11 -10 -10 -10 -9 -8 -7 -6 -6 -6 -5 -5 -5 -5 -4 -4 -4 -4 -4 ------- Run | Scr Mat Min Exi Min Mat Fac Fac Low Low Fac Upp Upp Zhi Pro Fac Upp Upp War Robot Analysis Total 6 | . . . . . 1 . 1 . . . . . 4 . . . . . Derelict Logs Recovered 6 | . . 1 . 2 . . . . . . . 1 . . . 1 1 . Drone Launches . | . . . . . . . . . . . . . . . . . . . Drone Recoveries . | . . . . . . . . . . . . . . . . . . . Exploration | -11 -10 -10 -10 -9 -8 -7 -6 -6 -6 -5 -5 -5 -5 -4 -4 -4 -4 -4 ------------- Run | Scr Mat Min Exi Min Mat Fac Fac Low Low Fac Upp Upp Zhi Pro Fac Upp Upp War Turns Passed 13842 | 101 1486 609 498 749 1607 1554 942 421 49 714 268 963 286 514 418 609 534 1520 Spaces Moved 7179 | 47 793 416 337 311 792 724 463 231 16 358 151 577 170 266 189 348 285 705 Core 8 | 7 . . . . . . . . . . . . . . . . . 1 Treads 4862 | 40 522 . . . 348 724 463 231 16 358 151 577 170 266 189 348 162 297 Legs 616 | . . . . 85 1 . . . . . . . . . . . 123 407 Wheels 1693 | . 271 416 337 226 443 . . . . . . . . . . . . . Hover . | . . . . . . . . . . . . . . . . . . . Flight . | . . . . . . . . . . . . . . . . . . . Fastest Speed 50 | 50 100 130 130 130 110 157 157 177 177 152 152 152 152 152 162 164 150 150 Average Speed 155 | 150 148 130 130 168 155 164 165 177 177 153 152 152 152 156 163 164 158 164 Slowest Speed 1750 | 160 160 130 130 270 270 205 177 177 177 158 152 152 152 162 164 164 220 1750 Overloaded Moves . | . . . . . . . . . . . . . . . . . . . Propulsion Burnouts . | . . . . . . . . . . . . . . . . . . . Robots Hopped . | . . . . . . . . . . . . . . . . . . . Cave-ins Triggered . | . . . . . . . . . . . . . . . . . . . Exploration Rate (%) 44 | 5 97 55 67 48 55 22 16 50 6 11 32 70 62 54 5 67 59 66 Regions Visited 18 Branch Regions 12 Pre-discovered Areas 8 | . 2 . 1 . 1 . . . . . . . 3 . . . 1 . Known Exits Taken 12 | . . . . . . 1 1 1 1 1 1 1 1 1 1 1 1 . Unknown Exits Taken 6 | 1 1 1 1 1 1 . . . . . . . . . . . . . Scrap Searched 9 | . . . . 1 . . . 3 . . 1 1 . 1 . 1 1 . Spaces Dug 22 | . . . . . . . 17 . . . . 1 . . 4 . . . Terrain Destroyed 192 | . . . . . 2 . 17 . . . . 87 . 30 35 1 1 19 Melee 5 | . . . . . . . . . . . . 1 . . 4 . . . Projectile 18 | . . . . . 2 . . . . . . . . . . 1 1 14 AOE 169 | . . . . . . . 17 . . . . 86 . 30 31 . . 5 Terrain Rammed . | . . . . . . . . . . . . . . . . . . . Walls Destroyed . | . . . . . . . . . . . . . . . . . . . Machines Disabled . | . . . . . . . . . . . . . . . . . . . Actions | -11 -10 -10 -10 -9 -8 -7 -6 -6 -6 -5 -5 -5 -5 -4 -4 -4 -4 -4 --------- Run | Scr Mat Min Exi Min Mat Fac Fac Low Low Fac Upp Upp Zhi Pro Fac Upp Upp War Total 9156 | 67 961 459 391 491 1090 1028 620 244 36 482 174 626 197 324 277 369 324 996 Wait 1089 | . 43 23 45 121 125 222 112 7 19 90 8 11 . 20 64 . 5 174 Move 7162 | 47 792 415 336 310 791 723 462 230 15 357 150 576 169 265 188 347 284 705 Hop . | . . . . . . . . . . . . . . . . . . . Pick Up 116 | 4 14 2 4 10 35 12 10 2 . 1 . 1 2 2 3 1 . 13 Fast Attach 71 | 7 2 . . 1 14 3 2 1 . 3 1 1 8 1 2 3 3 19 Attach 60 | . 6 3 . 1 7 4 1 . . 1 1 3 2 3 1 . 7 20 Detach 21 | . . . . . 4 . . . . 1 1 1 3 1 1 . . 9 Swap 104 | . 5 1 1 7 13 17 11 1 2 6 4 10 1 10 4 3 3 5 Drop 108 | . 3 . . 13 39 12 9 3 . 4 2 1 8 1 1 4 . 8 Fire 344 | 4 82 14 . 27 47 25 9 . . 18 7 19 . 21 9 11 22 29 Melee 29 | . . . 5 1 . . . . . . . 1 4 . 4 . . 14 Ram 5 | . 4 1 . . . . . . . . . . . . . . . . Kick . | . . . . . . . . . . . . . . . . . . . Crush 29 | 5 10 . . . 5 6 1 . . 1 . 1 . . . . . . Escape Stasis . | . . . . . . . . . . . . . . . . . . . Rewire 1 | . . . . . . . . . . . . 1 . . . . . . Trap 17 | . . . . . 10 4 3 . . . . . . . . . . . Miscellaneous . | . . . . . . . . . . . . . . . . . . . Route ------- -11/Scrapyard -10/Materials (discovered 4 exits: [*Mat x3] / [*Min]) -10/Mines (discovered 3 exits: [*Mat x2] / *Exi) -10/Exiles -9/Mines -8/Materials (discovered 2 exits: *Fac x2) -7/Factory -6/Factory -6/Lower Caves -6/Lower Caves -5/Factory (discovered 4 exits: *Fac x2 / *Upp x2) -5/Upper Caves -5/Upper Caves -5/Zhirov -4/Proximity Caves -4/Factory (discovered 2 exits: *Upp x2) -4/Upper Caves -4/Upper Caves (discovered 2 exits: [*Res] / *War) -4/Warlord History --------- Turn | Location | Event 22 | -11/Scrapyard | Discovered new exit (range 15) 102 | -11/Scrapyard | Entered Materials 301 | -10/Materials | Build established: Mutant 446 | -10/Materials | Discovered new exit (range 7) 654 | -10/Materials | Discovered new exit (range 6) 1034 | -10/Materials | Discovered new exit (range 8) 1181 | -10/Materials | Core integrity fell below 50% 1227 | -10/Materials | Lost 4 parts (1p2n1w) 1310 | -10/Materials | Discovered new exit (range 8) 1588 | -10/Materials | Entered Mines 1690 | -10/Mines | Discovered new exit (range 5) 1736 | -10/Mines | Deemed a non-threat by the Exiles lab entrance 1736 | -10/Mines | Discovered new exit (range 5) 1840 | -10/Mines | Assembled infested the area 1913 | -10/Mines | Discovered new exit (range 9) 1976 | -10/Mines | Lost 3 parts (1p2w) 1987 | -10/Mines | Learned Materials stockpile data 2000 | -10/Mines | Assisted by bots powering up and referring to "LRC-V3" 2197 | -10/Mines | Entered Exiles 2197 | -10/Exiles | Accompanied by 3 allies 2234 | -10/Exiles | Met 8R-AWN 2255 | -10/Exiles | Met EX-HEX 2355 | -10/Exiles | Met EX-BIN 2416 | -10/Exiles | Aligned with FarCom system 2417 | -10/Exiles | Given EX-Vault access code 2455 | -10/Exiles | Met EX-DEC 2491 | -10/Exiles | Learned location of Zion (-6) 2556 | -10/Exiles | Opened EX-Vault 2566 | -10/Exiles | Found PSU Rigger 2596 | -10/Exiles | Warned to stay clear of 0b10 Research branches 2680 | -10/Exiles | Discovered new exit (range 11) 2695 | -10/Exiles | Left Exiles lab with PSU Rigger 2695 | -10/Exiles | Entered Mines 2695 | -9/Mines | Accompanied by 3 allies 2711 | -9/Mines | Learned Materials terminal intel 2841 | -9/Mines | Excavation squad dispatched 2841 | -9/Mines | A large section of the Mines collapsed 3053 | -9/Mines | Learned 2 Materials zone layouts 3091 | -9/Mines | Excavation squad dispatched 3277 | -9/Mines | Core integrity fell below 20% 3341 | -9/Mines | Excavation squad dispatched 3371 | -9/Mines | Discovered new exit (range 4) 3444 | -9/Mines | Entered Materials 3444 | -8/Materials | Evolved 4 slots: Propulsion x1, Utility x2, Weapon x1 3447 | -8/Materials | Loaded intel: 11 terminal locations 3578 | -8/Materials | Repaired Hcp. Storage Unit 4149 | -8/Materials | Lost 3 parts (1p1n1u) 4514 | -8/Materials | Build established: Skirmisher 4517 | -8/Materials | Discovered new exit (range 6) 4792 | -8/Materials | Repaired Adv. Treads 4974 | -8/Materials | Discovered new exit (range 10) 5051 | -8/Materials | Entered Factory 5051 | -7/Factory | Evolved 2 slots: Propulsion x1, Utility x1 5189 | -7/Factory | Build established: Hauler-Skirmisher 5955 | -7/Factory | Garrison activated, responded to threat 6327 | -7/Factory | Repaired Gauss Rifle 6430 | -7/Factory | Discovered new exit (range 14) 6478 | -7/Factory | Identified exit to Factory 6605 | -7/Factory | Entered another Factory area 6605 | -6/Factory | Evolved 2 slots: Utility x1, Weapon x1 6721 | -6/Factory | Build established: Hauler-Mutant 7207 | -6/Factory | Build established: Hauler-Skirmisher 7481 | -6/Factory | Discovered new exit (range 10) 7539 | -6/Factory | Identified exit to Lower Caves 7547 | -6/Factory | Entered Lower Caves 7548 | -6/Lower Caves | Encountered a Warlord checkpoint 7961 | -6/Lower Caves | Discovered new exit (range 5) 7966 | -6/Lower Caves | Identified exit to Lower Caves 7968 | -6/Lower Caves | Entered another Lower Caves area 7979 | -6/Lower Caves | Discovered new exit (range 13) 8006 | -6/Lower Caves | Identified exit to Factory 8017 | -6/Lower Caves | Entered Factory 8017 | -5/Factory | Evolved 2 slots: Propulsion x1, Utility x1 8232 | -5/Factory | Identified exit to Upper Caves 8322 | -5/Factory | Build established: Hauler-Assassin 8400 | -5/Factory | Discovered new exit (range 4) 8459 | -5/Factory | Identified exit to Factory 8538 | -5/Factory | Discovered exit to Factory (range 14) 8624 | -5/Factory | Build established: Hauler-Skirmisher 8731 | -5/Factory | Entered Upper Caves 8943 | -5/Upper Caves | Ambushed by wild Derelicts 8988 | -5/Upper Caves | Discovered new exit (range 8) 8998 | -5/Upper Caves | Identified exit to Upper Caves 8999 | -5/Upper Caves | Entered another Upper Caves area 9012 | -5/Upper Caves | Attracted the attention of an 0b10 checkpoint 9259 | -5/Upper Caves | Spotted B-75 Beast 9282 | -5/Upper Caves | Destroyed B-75 Beast 9789 | -5/Upper Caves | Discovered new exit (range 5) 9793 | -5/Upper Caves | Identified exit to Zhirov 9913 | -5/Upper Caves | Learned location of 1 exit from Factory 9962 | -5/Upper Caves | Entered Zhirov 9964 | -5/Zhirov | Discovered new exit (range 3) 9968 | -5/Zhirov | Identified exit to Proximity Caves 9985 | -5/Zhirov | Build established: Hauler-Mutant 9992 | -5/Zhirov | Met Zhirov 10025 | -5/Zhirov | Learned location of Quarantine (-3) 10025 | -5/Zhirov | Learned location of Testing (-2) 10025 | -5/Zhirov | Learned location of Command (-1) 10051 | -5/Zhirov | Zhirov requested help retrieving the SGEMP Prototype 10076 | -5/Zhirov | Found Alien Artifact 10099 | -5/Zhirov | Found Alien Artifact 10099 | -5/Zhirov | Identified Integrated Reactor 10099 | -5/Zhirov | Installed Integrated Reactor, increased core energy generation (+10) 10248 | -5/Zhirov | Entered Proximity Caves 10335 | -4/Proximity Caves | Attracted the attention of an 0b10 checkpoint 10528 | -4/Proximity Caves | Spotted B-86 Titan 10538 | -4/Proximity Caves | Build established: Hauler-Skirmisher 10635 | -4/Proximity Caves | Destroyed B-86 Titan 10745 | -4/Proximity Caves | Discovered exit to Factory (range 12) 10762 | -4/Proximity Caves | Entered Factory 10762 | -4/Factory | Evolved 2 slots: Propulsion x1, Utility x1 10763 | -4/Factory | Identified exit to Upper Caves 11146 | -4/Factory | Discovered exit to Upper Caves (range 16) 11180 | -4/Factory | Entered Upper Caves 11400 | -4/Upper Caves | Attracted the attention of an 0b10 checkpoint 11479 | -4/Upper Caves | Learned Research terminal intel 11774 | -4/Upper Caves | Discovered new exit (range 10) 11787 | -4/Upper Caves | Identified exit to Upper Caves 11789 | -4/Upper Caves | Entered another Upper Caves area 11857 | -4/Upper Caves | Lost 10 parts (1p4n3u2w) 11891 | -4/Upper Caves | Discovered new exit (range 13) 12118 | -4/Upper Caves | Lost 3 parts (3n) 12302 | -4/Upper Caves | Discovered new exit (range 13) 12320 | -4/Upper Caves | Identified exit to Warlord 12323 | -4/Upper Caves | Entered Warlord 12373 | -4/Warlord | System corruption cleaned by Quarantine Array 12619 | -4/Warlord | Met Warlord 12644 | -4/Warlord | Warlord's base attacked by MAIN.C 12789 | -4/Warlord | Found Prototype Piercing Weapon 12789 | -4/Warlord | Identified Vortex Lance 12792 | -4/Warlord | Found Vortex Lance 12798 | -4/Warlord | Found Prototype Energy Gun 12798 | -4/Warlord | Identified Vortex Shotgun 12802 | -4/Warlord | Found Vortex Shotgun 12977 | -4/Warlord | Spotted Striker 12979 | -4/Warlord | Spotted Executioner 12994 | -4/Warlord | Warlord forces counterattacked 13028 | -4/Warlord | Destroyed Executioner 13052 | -4/Warlord | Lost 3 parts (2u1w) 13069 | -4/Warlord | Spotted B-90 Cyclops 13089 | -4/Warlord | Spotted B-86 Titan 13114 | -4/Warlord | Destroyed B-86 Titan 13145 | -4/Warlord | Spotted Striker 13146 | -4/Warlord | Spotted Executioner 13263 | -4/Warlord | Lost 13 parts (2p4n4u3w) 13539 | -4/Warlord | Build established: Hauler-Mutant 13716 | -4/Warlord | Core integrity fell below 50% 13717 | -4/Warlord | Spotted Executioner 13761 | -4/Warlord | Lost 6 parts (4n1u1w) 13773 | -4/Warlord | Found Hvy. Reflective Plating 13773 | -4/Warlord | Spotted Executioner 13788 | -4/Warlord | Found Exp. Melee Analysis Suite 13797 | -4/Warlord | Spotted Executioner 13801 | -4/Warlord | Destroyed Executioner 13812 | -4/Warlord | Core integrity fell below 20% 13843 | -4/Warlord | Destroyed by G-67 Veteran with Plasma Rifle Last Messages --------------- 13829_ Flexi-carbon Leg self-destruct mechanism malfunctions. 13830_ Acquired Enh. Biometal Leg. 13830_ G-73 Enforcer destroyed. 13830_ HV Slug penetrates Deuterium Array. 13831_ Adv. Signal Interpreter destroyed. 13833_ Acquired Prototype Ballistic Gun. 13833_ Identified Helical Railgun. 13833_ HV Slug penetrates X-82 Rainmaker. 13833_ X-82 Rainmaker suffers critical hit. 13834_ Lgt. Quantum Reactor self-destruct mechanism malfunctions. 13834_ ANNOUNCEMENT: MAIN.C reinforcements approaching through caves, arriving soon. 13836_ Lyr. Medium Armor Plating destroyed. 13836_ HV Slug penetrates X-82 Rainmaker. 13838_ Myomer Leg self-destruct mechanism malfunctions. 13839_ Slug penetrates X-82 Rainmaker. 13840_ X-82 Rainmaker knocked back. 13841_ Slug penetrates X-82 Rainmaker. 13842_ HV Slug penetrates X-82 Rainmaker. 13843_ X-82 Rainmaker system terminally corrupted. Map ----- +----------------------------------------------------+ | ??????????????#" "## #???# # # | | ??????????????#" X "## #???# + # | | ??????????????#" " """"## #???### """" # | | ??????????????#""""" """"## #?????# """" # | | ??????????????#"""" """"## #?????# """" # | | ??????????????#"""" """## ##????# """" # | | ??????????????############# X#????# # | | ???###########????????????# ##??###+###+#### | | ???# #??????????### ##??# | | ???# #?????????? # #??# | | ???# ########??" # ##??# | | ???# !! + #"" # #???# | | ???# / ###### #""" # ##### = | | ???# // #????# #""" # %! | | ???# #????# #"" # ^ = | | ???# #????# # "" # """"" """"" | | ???#########+###### # # """"" """"" | | ?????????# # #^ ^ """"" """"" ## | | ?????????# + ; =% ## | | ????????#### ## # =[ | | ????????# # ; *%gg= | | ????????# #;;;;; =% | | ????????# """ g | | ????????# """ %x% % | | ????????# """ = ] g * %! | | ????????# *@ %= ; !%! # # ## | | ????????# %%%%%! ] | | ????????# %W/% # ### ; """" # | | ????????###### ####!!%########### """" ### | | ?????????????#####?# ## """" #?? | | ???????????????????# ## """" #?? | | ???????????????????#" ## #?? | | ???????????????????#" ## #?? | | ???????????????????#" "# X## #?? | | ???????????????????#" "##"""### ? #?? | | ???????????????????#" #??????##########?? | | ???????????????????# #?????????????????? | | ???????????????????# "#?????????????????? | | ???????????????????# "#?????????????????? | | ???????????????????#" "#?????????????????? | | ???????????????????#"" """#?????????????????? | | ???????????????????###########?????????????????? | | ???????????????????????????????????????????????? | | ???????????????????????????????????????????????? | | ???????????????????????????????????????????????? | | ???????????????????????????????????????????????? | | ???????????????????????????????????????????????? | | ???????????????????????????????????????????????? | | ???????????????????????????????????????????????? | | ???????????????????????????????????????????????? | +----------------------------------------------------+ Best States ------------- Heat Dissipation 70 Energy Generation 35 Energy Capacity 340 Matter Stores 500 Matter Capacity 500 Sight Range 16 Robot Scan Range 13 Terrain Scan Range 20 Terrain Scan Density 210 Jamming Range 8 Armor Coverage 1200 Resistance: KI 30 Resistance: TH 25 Resistance: EM 15 Weapon Shielding 90 Reclamation Efficiency 20 Evasion (%) 40 Targeting Accuracy 8 Melee Accuracy 12 Recoil Reduction 6 Item Schematics ----------------- Hcp. Storage Unit | -8/Materials | Hacked Med. Treads | -7/Factory | Scanalyzed Assault Drone Bay | -5/Zhirov | Free Exp. Heat Sink | -5/Zhirov | Free Exp. Optical Array | -5/Zhirov | Free Imp. Arc Thrower | -5/Zhirov | Free Robot Schematics ------------------ None Fabricated ------------ Nothing Alien Tech Used ----------------- Integrated Reactor Achievements -------------- Adventurer root@ Challenges ------------ None Game ------ Seed SmartbombManeuveringBattery Manual? 0 Play Time 03:37:24 Cumulative 58.0 hours Start 2021.08.06 @ 17:47:12 End 2021.08.08 @ 06:10:38 Sessions 13 Manual Loads 0 Difficulty Rogue Special Mode None Game No. 37 Rogue 37 Adventurer 0 Explorer 0 Win Type - Total 0 Types 0/0/0/0/0/0/0/0/0 Lore% 44 Gallery% 58 Achievement% 36 Wizard Run 0 Options --------- ASCII 0 Keyboard 1 Movement Vi Keybinds 0 Fullscreen 2 Font 18/Cog Map View 76x50 Tactical HUD 1 Map Filters NONE Filters NONE Steam 0 RUN: 79ade05a-ebe1-47f7-85f8-2e42158958c6